bitfinex/quotes_ETHUSD_20220103
["timestamp","ask_amount","ask_price","bid_price","bid_amount"]
[1641190658331,0.381,3813.0,3812.7,0.65579]
[1641190658586,0.381,3813.0,3812.6,0.01031596]
[1641190658786,0.381,3813.0,3812.8,0.00284212]
[1641190658988,0.381,3813.0,3812.7,0.00341054]
[1641190659186,1.60230576,3813.0,3812.7,0.00341054]
[1641190659387,1.60230576,3813.0,3812.8,0.65579]
[1641190659790,1.60230576,3813.0,3812.9,0.00227369]
[1641190662227,4.20230576,3813.0,3812.9,0.00227369]
[1641190663230,4.88712455,3813.0,3812.9,0.00227369]
[1641190663633,4.88712455,3813.0,3812.7,0.65925054]
[1641190665034,0.65587,3812.9,3812.7,0.00341054]
[1641190665437,0.65587,3812.9,3812.5,0.00454739]
[1641190665736,0.65587,3812.8,3812.5,0.00454739]
[1641190665999,1.6928468,3812.7,3812.5,0.00454739]
[1641190666201,1.6928468,3812.7,3812.3,0.04240836]
[1641190666202,1.6928468,3812.7,3812.4,0.00511581]
[1641190666602,0.65596,3812.6,3812.4,0.00511581]
[1641190666802,0.381,3812.5,3812.4,0.00511581]
[1641190667400,9.90095486,3812.5,3812.4,0.00511581]
[1641190667602,7.30754774,3812.5,3812.4,0.00511581]
[1641190667805,8.30914774,3812.5,3812.4,0.00511581]
[1641190667999,8.20674774,3812.5,3812.4,0.00511581]
[1641190668400,6.439,3812.5,3812.4,0.00511581]
[1641190668603,9.10507431,3812.5,3812.4,0.00511581]
[1641190668803,11.74814749,3812.5,3811.6,0.0096632]
[1641190669004,0.6560692,3812.1,3811.6,0.0096632]
[1641190669202,2.79449142,3812.0,3811.6,0.0096632]
[1641190669402,0.381,3811.9,3811.7,0.01031745]
[1641190669852,2.38243041,3811.8,3811.7,0.01031745]
[1641190670053,3.87224483,3811.8,3811.7,0.01031745]
[1641190670251,3.92625545,3811.8,3811.7,0.01941222]
[1641190670455,3.90821326,3811.8,3811.7,0.01941222]
[1641190670651,1.48981442,3811.8,3811.7,0.01941222]
[1641190671257,3.83787593,3811.8,3811.7,0.01941222]
[1641190673161,6.43787593,3811.8,3811.7,0.01941222]
[1641190673990,9.37836581,3811.8,3811.7,0.01941222]
[1641190677338,9.67836581,3811.8,3811.7,0.01941222]
[1641190677538,10.97836581,3811.8,3811.7,0.01941222]
[1641190677738,9.37836581,3811.8,3811.7,0.01941222]
[1641190678142,9.97836581,3811.8,3811.7,0.01941222]
[1641190678339,10.97836581,3811.8,3811.7,0.01941222]
[1641190678744,12.74286655,3811.8,3811.7,0.01941222]
[1641190679546,12.84206655,3811.8,3811.7,0.01941222]
[1641190679744,12.84126655,3811.8,3811.7,0.01941222]
[1641190679944,11.14286655,3811.8,3811.7,0.01941222]
[1641190680144,12.74286655,3811.8,3811.7,0.01941222]
[1641190680545,8.7343043,3811.8,3811.7,1.222e-05]
[1641190680752,22.14404387,3811.8,3811.7,1.222e-05]
[1641190680992,0.65628,3811.4,3810.9,0.00455961]
[1641190681193,1.31255,3811.5,3810.9,0.00455961]
[1641190681194,0.6562715,3811.1,3810.9,0.00455961]
[1641190681394,0.381,3811.0,3810.9,0.00455961]
[1641190681997,1.4525962,3811.0,3810.9,0.00455961]
[1641190682798,4.39308608,3811.0,3810.9,0.00455961]
[1641190686237,5.70708608,3811.0,3810.9,0.00455961]
[1641190689298,5.70708608,3811.0,3810.8,1.52350029]
[1641190689496,1.314,3810.9,3810.8,1.52350029]
[1641190689695,1.695,3810.9,3810.8,1.52350029]
[1641190689896,4.63548988,3810.9,3810.8,1.52350029]
[1641190691896,4.93548988,3810.9,3810.8,1.52350029]
[1641190692547,8.83548988,3810.9,3810.8,1.52350029]
[1641190692748,7.53548988,3810.9,3810.8,1.52350029]
[1641190693149,7.53548988,3810.9,3810.8,0.65566]
[1641190693347,7.53548988,3810.9,3810.2,0.05420356]
[1641190693552,1.3127154,3810.6,3810.2,0.05420356]
[1641190693753,0.381,3810.5,3810.3,0.00341054]
[1641190695252,2.15197054,3810.5,3810.4,0.0103219]
[1641190695653,2.15197054,3810.5,3810.4,0.01316402]
[1641190696089,4.52132042,3810.5,3810.4,0.01316402]
[1641190696289,2.15197054,3810.5,3810.4,0.01316402]
[1641190700457,4.82337608,3810.5,3810.4,0.01316402]
[1641190701860,5.82337608,3810.5,3810.4,0.01316402]
[1641190702266,11.07027608,3810.5,3810.4,0.01316402]
[1641190703066,11.95576136,3810.5,3810.4,0.01316402]
[1641190703266,10.65576136,3810.5,3810.4,0.01316402]
[1641190704101,8.28435582,3810.5,3810.4,0.01316402]
[1641190704702,10.6550399,3810.5,3810.4,0.01316402]
[1641190704906,7.99858408,3810.5,3810.4,0.01316402]
[1641190705607,10.6550399,3810.5,3810.4,0.01316402]
[1641190706207,11.6550399,3810.5,3810.4,0.01316402]
[1641190706407,11.9550399,3810.5,3810.4,0.01316402]
[1641190706607,9.29858408,3810.5,3810.4,0.01316402]
[1641190706907,7.99858408,3810.5,3810.4,0.01316402]
[1641190707120,8.29858408,3810.5,3810.4,0.01316402]
[1641190707349,11.83364672,3810.5,3810.4,0.01316402]
[1641190708050,8.29858408,3810.5,3810.4,0.01316402]
[1641190708350,5.9279,3810.5,3810.4,0.01316402]
[1641190708753,8.35566819,3810.5,3810.4,0.01316402]
[1641190709054,9.35566819,3810.5,3810.4,0.01316402]
[1641190709252,8.35566819,3810.5,3810.4,0.01316402]
[1641190709459,5.6279,3810.5,3810.4,0.01316402]
[1641190709658,5.9279,3810.5,3810.4,0.01316402]
[1641190709856,8.35122334,3810.5,3810.4,0.01316402]
[1641190710063,9.35122334,3810.5,3810.4,0.01316402]
[1641190710457,10.66522334,3810.5,3810.4,0.01316402]
[1641190710657,16.29915808,3810.5,3810.4,0.01316402]
[1641190710858,13.64169309,3810.5,3810.4,0.01316402]
[1641190714207,11.21836975,3810.5,3810.4,0.01316402]
[1641190714608,11.21836975,3810.5,3809.4,0.0173683]
[1641190714857,1.31282,3810.0,3809.4,0.0173683]
[1641190715054,0.381,3809.9,3809.5,0.00511581]
[1641190715750,0.381,3809.9,3809.2,0.00682108]
[1641190715952,1.0374,3809.9,3809.3,0.50638]
[1641190716153,0.65638,3809.8,3809.3,0.50638]
[1641190716350,0.65638,3809.8,3809.4,0.00568423]
[1641190716551,3.63284975,3809.8,3809.4,0.00568423]
[1641190717153,0.65638,3809.8,3809.4,0.00568423]
[1641190717954,2.97646975,3809.7,3809.4,0.00568423]
[1641190718153,2.97646975,3809.7,3809.4,0.66205423]
[1641190719713,2.97646975,3809.7,3809.4,0.00568423]
[1641190720113,2.97646975,3809.7,3809.0,7.52273]
[1641190720114,2.97646975,3809.7,3809.2,0.00682108]
[1641190720314,2.97646975,3809.7,3809.1,0.0073895]
[1641190721113,0.6564,3809.6,3809.1,0.0073895]
[1641190721315,0.6564,3809.6,3809.3,0.65639]
[1641190721716,2.97646975,3809.7,3809.4,0.00568423]
[1641190722117,2.97646975,3809.8,3809.4,0.00568423]
[1641190722349,4.92080856,3809.8,3809.1,0.0073895]
[1641190722554,2.97646975,3809.6,3809.3,0.65637]
[1641190722948,2.97646975,3809.6,3809.4,0.00568423]
[1641190723351,5.57646975,3809.6,3809.4,0.00568423]
[1641190723556,2.6,3809.6,3809.4,0.00568423]
[1641190723955,2.97646975,3809.5,3809.4,0.00568423]
[1641190725075,1.77158832,3810.2,3809.4,2.96769596]
[1641190725257,1.77158832,3810.2,3810.1,0.01297635]
[1641190725656,1.77158832,3810.2,3810.1,0.01468162]
[1641190725859,5.06553027,3811.3,3810.1,0.01468162]
[1641190725860,4.40941027,3811.3,3810.4,3.2]
[1641190726114,4.40941027,3811.3,3810.8,1.31191]
[1641190727211,4.35491684,3811.3,3810.9,0.65598]
[1641190727411,4.35491684,3811.3,3811.0,0.65596]
[1641190727616,1.25512361,3812.0,3811.0,0.65596]
[1641190728013,0.00795793,3811.8,3811.0,0.65596]
[1641190728214,0.00795793,3811.8,3811.1,2.45156354]
[1641190728416,0.00738951,3811.7,3811.1,2.45156354]
[1641190728815,0.00682108,3811.6,3811.1,2.45156354]
[1641190729017,0.00682108,3811.6,3811.2,0.65598]
[1641190729217,0.00625266,3811.5,3811.2,0.65598]
[1641190729617,0.00568424,3811.4,3811.2,0.65598]
[1641190730054,1.03696,3812.4,3811.2,0.65598]
[1641190730055,0.00511581,3811.3,3811.2,0.65598]
[1641190732960,2.60511581,3811.3,3811.2,0.65598]
[1641190740357,2.60511581,3811.3,3811.2,3.09129371]
[1641190742827,2.60511581,3811.3,3811.2,0.65598]
[1641190744533,2.60511581,3811.3,3811.2,1.03698]
[1641190744946,2.60511581,3811.3,3811.2,1.69288]
[1641190745148,2.60511581,3811.3,3811.2,2.69288]
[1641190745854,2.60511581,3811.3,3811.2,5.23162664]
[1641190746649,2.60511581,3811.3,3811.2,6.57056687]
[1641190746851,4.82143814,3811.3,3811.2,6.57056687]
[1641190747656,4.82143814,3811.3,3811.2,5.23162664]
[1641190753346,4.82143814,3811.3,3811.2,7.01697708]
[1641190754149,4.82143814,3811.3,3811.2,7.31697708]
[1641190754753,2.60511581,3811.3,3811.2,7.31697708]
[1641190754952,2.60511581,3811.3,3811.2,5.53162664]
[1641190760249,0.0584,3812.7,3811.8,0.65583]
[1641190760449,0.65586,3812.8,3811.9,0.65583]
[1641190760652,0.00738951,3812.6,3811.9,0.65583]
[1641190761050,0.00682108,3812.5,3811.9,0.65583]
[1641190761447,0.00625266,3812.4,3812.1,1.31169]
[1641190761848,0.00568424,3812.3,3812.1,1.31169]
[1641190762250,0.00511581,3812.2,3812.1,1.31169]
[1641190762851,0.00511581,3812.2,3812.0,1.322017]
[1641190763252,0.00454739,3812.1,3812.0,1.322017]
[1641190766611,0.00454739,3812.1,3812.0,1.977857]
[1641190768650,0.00454739,3812.1,3812.0,1.322017]
[1641190769053,2.14565906,3812.1,3812.0,1.322017]
[1641190776652,2.14565906,3812.1,3812.0,0.010317]
[1641190776653,2.44565906,3812.1,3812.0,0.010317]
[1641190776855,2.82665906,3812.1,3812.0,0.010317]
[1641190777257,4.60543271,3812.1,3812.0,0.010317]
[1641190777854,4.30543271,3812.1,3812.0,0.010317]
[1641190778492,0.38554739,3812.1,3812.0,0.010317]
[1641190778702,3.06633425,3812.1,3812.0,0.010317]
[1641190779301,5.20744592,3812.1,3812.0,0.010317]
[1641190779601,5.2064245,3812.1,3812.0,0.010317]
[1641190779805,2.82665906,3812.1,3812.0,0.010317]
[1641190780200,5.23146664,3812.1,3812.0,0.010317]
[1641190781603,2.82665906,3812.1,3812.0,0.010317]
[1641190782000,5.21688499,3812.1,3812.0,0.010317]
[1641190782549,2.82665906,3812.1,3812.0,0.010317]
[1641190783749,2.52665906,3812.1,3812.0,0.010317]
[1641190784354,2.52665906,3812.1,3811.4,0.616297]
[1641190784552,0.65598,3811.9,3811.4,0.616297]
[1641190784954,0.00284212,3811.8,3811.4,0.616297]
[1641190785353,0.0022737,3811.7,3811.4,0.616297]
[1641190785754,0.00170527,3811.6,3811.4,0.616297]
[1641190786207,0.00113685,3811.5,3811.3,0.65598]
[1641190786610,0.0022737,3811.7,3811.3,0.65598]
[1641190787008,0.00170527,3811.6,3811.3,0.65598]
[1641190787409,0.00113685,3811.5,3811.3,0.65598]
[1641190787814,0.65598,3811.8,3811.3,0.65598]
[1641190787815,2.14338537,3811.7,3811.3,0.65598]
[1641190788210,0.00170527,3811.6,3811.3,0.65598]
[1641190788613,0.00113685,3811.5,3811.3,0.65598]
[1641190788913,0.00170527,3811.6,3811.3,0.65598]
[1641190789114,2.14281694,3811.6,3811.3,0.65598]
[1641190789312,0.00113685,3811.5,3811.3,0.65598]
[1641190789950,2.14224852,3811.5,3811.3,0.65598]
[1641190790759,0.00113685,3811.5,3811.3,0.65598]
[1641190792256,2.14224852,3811.5,3811.3,0.65598]
[1641190792658,2.14111167,3811.4,3811.3,0.65598]
[1641190795004,4.74111167,3811.4,3811.3,0.65598]
[1641190814655,6.02078913,3811.4,3811.3,0.65598]
[1641190821359,6.02078913,3811.4,3811.3,0.66629928]
[1641190826008,4.74111167,3811.4,3811.3,0.66629928]
[1641190861614,4.74111167,3811.4,3811.3,0.01031928]
[1641190862616,4.74111167,3811.4,3811.3,1.32732219]
[1641190872113,0.05449086,3812.1,3811.4,3.85]
[1641190872359,0.05449086,3812.1,3811.7,0.65575]
[1641190872557,0.00341054,3811.9,3811.8,0.65571]
[1641190872757,0.00341054,3811.9,3811.7,19.01236]
[1641190872959,0.00341054,3811.9,3811.8,2.19745423]
[1641190873157,2.15659196,3812.0,3811.9,0.65573]
[1641190873559,2.16057093,3812.0,3811.9,0.95573]
[1641190874364,0.00397897,3812.0,3811.9,3.45361197]
[1641190874561,0.00397897,3812.0,3811.9,6.42634488]
[1641190874960,0.00397897,3812.0,3811.9,3.92846291]
[1641190875864,0.00397897,3812.0,3811.9,5.6460578]
[1641190876716,0.00397897,3812.0,3811.9,4.32905489]
[1641190877316,2.60397897,3812.0,3811.9,4.32905489]
[1641190878524,0.00397897,3812.0,3811.9,4.32905489]
[1641190880857,0.05482255,3812.5,3811.9,4.32905489]
[1641190881061,0.05482255,3812.5,3812.3,0.65569]
[1641190881259,0.00227369,3812.4,3812.3,0.65569]
[1641190881457,0.00227369,3812.4,3812.3,1.65569]
[1641190882157,0.00227369,3812.4,3812.3,2.31138]
[1641190882358,0.00227369,3812.4,3812.3,2.9670614]
[1641190882557,0.00227369,3812.4,3812.3,3.2670614]
[1641190883361,0.00227369,3812.4,3812.3,2.2670614]
[1641190883620,0.00227369,3812.4,3812.3,1.9670614]
[1641190883819,0.00227369,3812.4,3812.3,2.2670614]
[1641190884015,0.00227369,3812.4,3812.3,3.2670614]
[1641190886016,0.00227369,3812.4,3812.3,2.61138]
[1641190888065,0.00227369,3812.4,3812.3,2.62336329]
[1641190890172,0.00227369,3812.4,3812.3,4.99761807]
[1641190890774,0.00227369,3812.4,3812.3,3.96181296]
[1641190891009,0.00227369,3812.4,3812.3,5.04331217]
[1641190891421,0.00227369,3812.4,3812.3,2.62336329]
[1641190897981,0.00227369,3812.4,3812.3,4.9529034]
[1641190898180,0.00227369,3812.4,3812.3,2.62336329]
[1641190898380,0.00227369,3812.4,3812.3,3.96181296]
[1641190899017,0.00227369,3812.4,3812.3,2.62336329]
[1641190899615,0.00227369,3812.4,3812.3,3.96181296]
[1641190900118,0.00227369,3812.4,3812.3,2.62336329]
[1641190901922,0.00227369,3812.4,3812.3,3.96181296]
[1641190903458,0.00227369,3812.4,3812.3,2.62336329]
[1641190904160,0.00227369,3812.4,3812.3,6.27152895]
[1641190904363,0.00227369,3812.4,3812.3,3.96181296]
[1641190906011,0.00227369,3812.4,3812.3,2.62336329]
[1641190911154,1.93551739,3812.6,3812.3,2.62336329]
[1641190911355,1.93551739,3812.6,3812.4,0.65574]
[1641190911565,2.49070431,3812.5,3812.2,1.27488415]
[1641190911763,0.381,3812.4,3812.2,1.27488415]
[1641190911962,2.54598375,3812.3,3812.2,1.27488415]
[1641190912164,2.92868902,3812.3,3812.2,1.27488415]
[1641190912959,2.92868902,3812.3,3811.9,1.78535044]
[1641190913164,5.52016641,3812.3,3811.8,0.05482179]
[1641190913363,0.00113684,3812.2,3811.8,0.05482179]
[1641190913611,0.38213684,3812.2,3811.8,0.05482179]
[1641190913816,3.60185834,3812.1,3811.8,0.05482179]
[1641190914014,3.60185834,3812.1,3811.9,0.01031734]
[1641190914415,2.34408956,3812.0,3811.9,0.01031734]
[1641190915216,4.27960695,3812.0,3811.9,0.01031734]
[1641190919968,4.26368853,3812.0,3811.9,0.01031734]
[1641190920164,1.93551739,3812.0,3811.9,0.01031734]
[1641190920364,2.31651739,3812.0,3811.9,0.01031734]
[1641190920768,1.93551739,3812.0,3811.9,0.01031734]
[1641190921616,2.63699716,3810.2,3810.1,11.37010229]
[1641190921815,4.27807282,3810.0,3809.7,1.5400617]
[1641190922013,4.27807282,3810.0,3809.7,0.83454709]
[1641190922014,2.97637792,3809.9,3809.7,0.83454709]
[1641190922311,4.758,3809.8,3809.7,0.77874709]
[1641190922517,7.65337792,3809.8,3809.7,0.77874709]
[1641190922710,7.65337792,3809.8,3809.7,0.79182083]
[1641190922711,6.96420619,3809.8,3809.7,0.79182083]
[1641190922913,7.34520619,3809.8,3809.7,0.79182083]
[1641190923110,8.00164289,3809.8,3809.7,0.01307374]
[1641190923508,8.00164289,3809.8,3809.5,0.01421059]
[1641190923710,4.758,3809.6,3809.5,0.01421059]
[1641190923911,5.139,3809.6,3808.6,0.0193264]
[1641190924211,5.41448,3809.1,3808.6,0.0193264]
[1641190924411,2.60057565,3809.0,3808.6,0.0193264]
[1641190925564,0.381,3809.0,3808.6,0.0193264]
[1641190925969,2.60472322,3809.0,3808.6,0.0193264]
[1641190926169,0.65652,3808.8,3808.6,0.0193264]
[1641190926371,0.381,3808.7,3808.6,0.0193264]
[1641190926970,2.31651739,3808.7,3808.6,0.0193264]
[1641190927577,0.381,3808.7,3808.6,0.0193264]
[1641190927976,0.381,3808.7,3807.9,0.02330537]
[1641190928177,0.65654,3808.5,3807.9,0.02330537]
[1641190928376,0.381,3808.4,3807.9,0.02330537]
[1641190928626,0.381,3808.4,3807.8,0.02387379]
[1641190929227,1.53516178,3808.4,3807.8,0.02387379]
[1641190933773,1.53516178,3808.4,3807.7,0.93039379]
[1641190934173,0.00284212,3808.3,3807.7,0.93039379]
[1641190934374,0.38384212,3808.3,3807.7,0.93039379]
[1641190934577,0.00227369,3808.2,3807.7,0.93039379]
[1641190934975,0.00170527,3808.1,3807.7,0.93039379]
[1641190935385,0.00113685,3808.0,3807.7,0.93039379]
[1641190935775,0.00227369,3808.2,3807.7,0.93039379]
[1641190936216,0.00170527,3808.1,3807.7,0.93039379]
[1641190936613,0.00113685,3808.0,3807.7,0.93039379]
[1641190937113,0.00227369,3808.2,3807.7,0.93039379]
[1641190937515,0.00170527,3808.1,3807.7,0.93039379]
[1641190937918,0.00113685,3808.0,3807.7,0.93039379]
[1641190938316,0.00227369,3808.2,3807.7,0.93039379]
[1641190938715,0.00170527,3808.1,3807.7,0.93039379]
[1641190939116,0.00113685,3808.0,3807.7,0.93039379]
[1641190939516,0.00341054,3808.4,3807.7,0.93039379]
[1641190939786,0.00341054,3808.4,3807.8,0.01032871]
[1641190939972,0.00284212,3808.3,3807.9,1.3129115]
[1641190940174,0.00284212,3808.3,3808.0,0.3]
[1641190940371,0.00227369,3808.2,3808.0,0.3]
[1641190940776,0.381,3808.5,3808.0,0.3]
[1641190940777,0.00170527,3808.1,3808.0,0.3]
[1641190942577,0.00170527,3808.1,3807.9,1.3129115]
[1641190942777,0.00170527,3808.1,3807.9,0.65648]
[1641190942977,0.00113685,3808.0,3807.9,0.65648]
[1641190944120,0.00113685,3808.0,3807.9,0.95648]
[1641190945324,0.00113685,3808.0,3807.9,0.96680843]
[1641190947963,0.00113685,3808.0,3807.9,0.31032843]
[1641190960915,0.00113685,3808.0,3807.8,0.3]
[1641190961213,2.9772829,3808.1,3807.7,2.89770373]
[1641190961214,2.82841975,3808.1,3807.7,2.89770373]
[1641190961418,1.71701484,3808.2,3807.7,2.89770373]
[1641190961613,1.71701484,3808.2,3807.9,1.3129371]
[1641190962263,1.71701484,3808.2,3808.0,0.3]
[1641190963265,0.381,3808.4,3808.0,0.6]
[1641190963266,1.71701484,3808.1,3808.0,0.6]
[1641190963868,1.71701484,3808.2,3808.0,0.6]
[1641190964271,1.71815168,3808.2,3808.0,0.6]
[1641190966210,0.00113684,3808.2,3808.0,0.6]
[1641190971864,0.00113684,3808.2,3808.0,0.3]
[1641190972665,0.00113684,3808.2,3808.0,0.6]
[1641190986170,0.00113684,3808.2,3808.1,2.24073978]
[1641190986771,0.00113684,3808.2,3808.0,1.25644]
[1641190988172,0.00113684,3808.2,3808.0,1.91288]
[1641190988821,0.00113684,3808.2,3808.0,1.25644]
[1641190991526,0.00113684,3808.2,3808.1,0.01032801]
[1641190994167,2.97718671,3808.6,3808.1,0.01032801]
[1641190994368,2.97718671,3808.6,3808.2,0.65646]
[1641190994567,0.00284212,3808.5,3808.2,0.65646]
[1641190994974,0.00227369,3808.4,3808.2,0.65646]
[1641190995371,0.00170527,3808.3,3808.2,0.65646]
[1641190995572,0.00170527,3808.3,3808.1,1.62323801]
[1641190995771,0.00170527,3808.3,3808.1,1.32323801]
[1641190996014,2.97718671,3808.5,3808.1,1.32323801]
[1641190996015,0.00113684,3808.2,3808.1,1.32323801]
[1641191007690,0.00113684,3808.2,3808.1,1.62323801]
[1641191008493,0.00113684,3808.2,3808.1,4.79260161]
[1641191008895,2.6,3808.7,3808.1,18.03323801]
[1641191008896,0.32815355,3808.7,3808.1,18.03323801]
[1641191009098,0.32815355,3808.7,3808.4,0.65628]
[1641191009295,0.32815355,3808.7,3808.5,0.65629]
[1641191009495,1.71701484,3809.2,3808.7,1.34786676]
[1641191009695,1.71701484,3809.2,3808.9,0.6562896]
[1641191009894,0.00511582,3809.1,3808.9,0.6562896]
[1641191010098,0.00511582,3809.1,3809.0,0.3]
[1641191010299,0.05525552,3809.3,3809.0,1.91257]
[1641191010496,0.05525552,3809.3,3809.1,0.65627]
[1641191010701,0.00568424,3809.2,3809.1,1.31253]
[1641191011124,0.00568424,3809.2,3809.1,0.65627]
[1641191014965,0.00568424,3809.2,3809.1,0.95627]
[1641191015364,0.00568424,3809.2,3809.1,3.14489772]
[1641191015584,0.00568424,3809.2,3809.1,0.95627]
[1641191016167,0.00568424,3809.2,3809.1,3.13617286]
[1641191020929,0.00568424,3809.2,3809.1,2.83617286]
[1641191021125,0.00568424,3809.2,3809.1,0.65627]
[1641191021925,0.00568424,3809.2,3809.1,2.83854155]
[1641191023170,0.00568424,3809.2,3809.1,0.65627]
[1641191023973,0.00568424,3809.2,3809.1,2.89116374]
[1641191024175,0.00568424,3809.2,3809.1,2.85447218]
[1641191024672,0.00568424,3809.2,3809.1,0.65627]
[1641191024873,0.00568424,3809.2,3809.1,0.95627]
[1641191027820,0.00568424,3809.2,3809.1,0.65627]
[1641191029629,2.98191921,3809.2,3809.1,0.65627]
[1641191037569,0.00568424,3809.2,3809.1,0.65627]
[1641191037771,0.00568424,3809.2,3809.1,0.95627]
[1641191038777,0.00568424,3809.2,3809.1,0.65627]
[1641191039377,2.98193594,3809.2,3809.1,0.65627]
[1641191039976,0.00568424,3809.2,3809.1,0.65627]
[1641191040576,0.05525445,3809.5,3809.1,0.65627]
[1641191040777,0.05525445,3809.5,3809.2,0.65629]
[1641191041029,0.00682109,3809.4,3809.2,0.65629]
[1641191041432,0.00625266,3809.3,3809.2,0.65629]
[1641191044638,0.00625266,3809.3,3809.2,0.66661487]
[1641191046906,2.98259699,3809.3,3809.2,0.66661487]
[1641191047507,0.00625266,3809.3,3809.2,0.66661487]
[1641191048108,2.98259699,3809.3,3809.2,0.66661487]
[1641191050722,2.98259699,3809.3,3809.2,0.96661487]
[1641191052670,2.98259699,3809.3,3809.2,0.66661487]
[1641191052873,2.98259699,3809.3,3809.2,0.31032487]
[1641191053070,2.98259699,3809.3,3809.2,0.01032487]
[1641191066829,2.98259699,3809.3,3809.2,0.31032487]
[1641191067906,2.98259699,3809.3,3809.2,0.01032487]
[1641191071726,2.97634433,3809.3,3809.2,0.01032487]
[1641191071929,2.97634433,3809.3,3809.2,0.31032487]
[1641191072528,2.97634433,3809.4,3809.2,0.96660487]
[1641191072728,2.97634433,3809.3,3809.2,1.62288487]
[1641191073834,2.97634433,3809.3,3809.2,1.32288487]
[1641191075481,2.97634433,3809.3,3809.2,0.66660487]
[1641191075680,2.97634433,3809.3,3809.2,0.01032487]
[1641191088233,3.35734433,3809.3,3809.2,0.01032487]
[1641191092294,5.07435917,3809.3,3809.2,0.01032487]
[1641191093092,3.35734433,3809.3,3809.2,0.01032487]
[1641191095540,4.35734433,3809.3,3809.2,0.01032487]
[1641191095740,12.21148403,3809.3,3809.2,0.01032487]
[1641191095938,18.17068403,3809.3,3809.2,0.01032487]
[1641191096138,19.48228403,3809.3,3809.2,0.01032487]
[1641191096341,23.01388113,3809.3,3809.2,0.01032487]
[1641191096643,23.01388113,3809.3,3808.4,0.05525445]
[1641191096644,0.65664,3808.7,3808.4,0.05525445]
[1641191096838,3.55397316,3808.6,3808.4,0.05525445]
[1641191097040,2.42809454,3808.5,3808.4,0.05525445]
[1641191097281,2.81079982,3808.5,3808.4,0.05525445]
[1641191098679,8.54198579,3808.5,3808.4,0.05525445]
[1641191102435,6.78718182,3808.5,3808.4,0.05525445]
[1641191106185,9.41938777,3808.5,3808.4,0.05525445]
[1641191110031,6.78718182,3808.5,3808.4,0.05525445]
[1641191114501,7.44384062,3808.5,3808.4,0.05525445]
[1641191120298,7.44384062,3808.5,3808.4,0.0668699]
[1641191124445,8.44384062,3808.5,3808.4,0.0668699]
[1641191124645,8.54784062,3808.5,3808.4,0.0668699]
[1641191124845,13.30504062,3808.5,3808.4,0.0668699]
[1641191125043,13.30504062,3808.5,3807.4,1.36865532]
[1641191125244,0.6567365,3808.1,3807.4,1.36865532]
[1641191125449,0.65674,3807.8,3807.5,0.00397896]
[1641191125643,0.381,3807.7,3807.5,0.01430786]
[1641191125844,0.381,3807.6,3807.5,0.01430786]
[1641191126046,0.381,3807.6,3807.5,0.0103289]
[1641191126646,3.35734433,3807.6,3807.5,0.0103289]
[1641191127479,4.01412433,3807.6,3807.5,0.0103289]
[1641191129582,6.31769151,3807.6,3807.5,0.0103289]
[1641191129782,6.30020358,3807.6,3807.5,0.0103289]
[1641191129984,6.27160198,3807.6,3807.5,0.0103289]
[1641191130183,6.29369667,3807.6,3807.5,0.0103289]
[1641191130385,6.2377409,3807.6,3807.5,0.0103289]
[1641191130588,6.23097073,3807.6,3807.5,0.0103289]
[1641191131027,6.26963073,3807.6,3807.5,0.0103289]
[1641191131234,7.64369236,3807.6,3807.5,0.0103289]
[1641191131427,13.15789236,3807.6,3807.5,0.0103289]
[1641191131632,18.72089236,3807.6,3807.5,0.0103289]
[1641191131827,18.72249236,3807.6,3807.5,0.0103289]
[1641191132128,18.71929236,3807.6,3807.5,0.0103289]
[1641191132327,18.71849236,3807.6,3807.5,0.0103289]
[1641191132525,18.61929236,3807.6,3807.5,0.0103289]
[1641191132725,19.93329236,3807.6,3807.5,0.0103289]
[1641191133326,20.03329236,3807.6,3807.5,2.89e-05]
[1641191133632,20.03329236,3807.6,3806.5,0.05568828]
[1641191133633,0.65699,3806.9,3806.5,0.05568828]
[1641191133831,0.381,3806.8,3806.5,0.05568828]
[1641191134030,1.161,3806.8,3806.6,0.00909477]
[1641191134630,1.11669462,3806.7,3806.6,0.00909477]
[1641191134899,1.49769462,3806.7,3806.6,0.00909477]
[1641191135502,4.36863435,3806.7,3806.6,0.00909477]
[1641191135705,4.36863435,3806.7,3806.3,0.01080004]
[1641191136103,7.34497868,3806.7,3806.3,0.01080004]
[1641191136903,2.97634433,3806.6,3806.2,0.15858025]
[1641191137104,1.03799,3806.5,3806.0,6.86699]
[1641191137305,2.22333223,3806.4,3806.0,0.65699]
[1641191137507,0.381,3806.3,3806.1,0.00113685]
[1641191137904,0.381,3806.3,3805.8,0.30284212]
[1641191138106,0.381,3806.3,3805.8,0.00284212]
[1641191138307,3.63335433,3806.2,3805.9,0.00227369]
[1641191138535,1.16189376,3806.0,3805.7,0.00341054]
[1641191138942,3.35734433,3806.2,3805.7,0.00341054]
[1641191139142,3.35734433,3806.2,3805.7,0.25341054]
[1641191139342,3.35734433,3806.2,3805.7,0.55341054]
[1641191139544,3.35734433,3806.2,3805.8,0.00284212]
[1641191139945,2.97634433,3806.1,3805.9,0.65701]
[1641191140245,2.97634433,3806.1,3806.0,0.00170527]
[1641191140444,4.18716433,3806.1,3806.0,0.00170527]
[1641191143089,4.56816433,3806.1,3806.0,0.00170527]
[1641191143495,5.22516433,3806.1,3806.0,0.00170527]
[1641191143896,7.82516433,3806.1,3806.0,0.00170527]
[1641191149439,7.82516433,3806.1,3805.5,1.31403]
[1641191149882,7.82516433,3806.1,3805.6,0.0022737]
[1641191150288,7.82516433,3806.1,3805.6,0.6593137]
[1641191150492,1.10256442,3805.5,3805.2,5.9783737]
[1641191150684,0.381,3805.4,3805.2,5.9783737]
[1641191150886,0.381,3805.4,3805.3,0.00170527]
[1641191151888,3.35734433,3805.4,3805.3,0.00170527]
[1641191152889,3.35734433,3805.4,3804.7,0.96218581]
[1641191153093,3.35734433,3805.4,3805.0,0.00341054]
[1641191153291,3.35734433,3805.4,3804.8,0.00454738]
[1641191154137,2.97634433,3805.3,3804.8,0.00454738]
[1641191154735,2.97634433,3805.3,3804.8,0.66159738]
[1641191154934,2.97634433,3805.3,3804.8,0.96159738]
[1641191155136,2.97634433,3805.3,3804.9,0.00397896]
[1641191155736,2.97634433,3805.3,3804.7,0.6]
[1641191155737,2.97634433,3805.3,3804.8,0.00454738]
[1641191158184,2.97634433,3805.3,3804.7,0.00511581]
[1641191159090,0.65715,3805.3,3804.7,0.30511581]
[1641191159290,0.65715,3805.3,3804.7,0.3]
[1641191159487,0.381,3805.4,3804.8,0.00454738]
[1641191159887,0.381,3805.4,3804.6,0.30568423]
[1641191160087,0.039147,3805.3,3804.5,2.45873232]
[1641191160287,0.04312596,3805.3,3804.3,2.89851399]
[1641191160492,0.00341054,3805.2,3804.3,2.89851399]